[Event "NJSK 2021 Jeugd C"]
[Site "Almelo, Netherlands"]
[Date "2021.08.05"]
[Round "7.7"]
[White "Aravindhan, Achyuth"]
[Black "Krylov, Philippe"]
[Result "1-0"]
[TimeControl "90min + 30sec/move"]
[WhiteElo "1031"]
[BlackElo "1339"]

1. e4 {[%clk 01:30:58]} {[%emt 00:00:02]} c6 {[%clk 01:30:55]} {[%emt
00:00:05]} 2. d4 {[%clk 01:31:24]} {[%emt 00:00:05]} d5 {[%clk 01:31:22]}
{[%emt 00:00:03]} 3. Nc3 {[%clk 01:31:49]} {[%emt 00:00:05]} dxe4 {[%clk
01:31:44]} {[%emt 00:00:08]} 4. Nxe4 {[%clk 01:32:13]} {[%emt 00:00:06]} Bf5
{[%clk 01:32:07]} {[%emt 00:00:06]} 5. Ng3 {[%clk 01:32:36]} {[%emt 00:00:07]}
Bg6 {[%clk 01:32:32]} {[%emt 00:00:06]} 6. h4 {[%clk 01:32:58]} {[%emt
00:00:06]} h6 {[%clk 01:32:58]} {[%emt 00:00:05]} 7. Nf3 {[%clk 01:33:01]}
{[%emt 00:00:27]} Nd7 {[%clk 01:33:06]} {[%emt 00:00:23]} 8. Bd3 {[%clk
01:33:21]} {[%emt 00:00:10]} Bxd3 {[%clk 01:33:27]} {[%emt 00:00:07]} 9. Qxd3
{[%clk 01:33:41]} {[%emt 00:00:11]} e6 {[%clk 01:33:39]} {[%emt 00:00:18]} 10.
Bf4 {[%clk 01:33:00]} {[%emt 00:01:09]} Ngf6 {[%clk 01:33:44]} {[%emt
00:00:26]} 11. O-O-O {[%clk 01:28:54]} {[%emt 00:04:36]} Be7 {[%clk 01:33:07]}
{[%emt 00:01:07]} 12. Ne4 {[%clk 01:28:24]} {[%emt 00:00:56]} Nxe4 {[%clk
01:32:25]} {[%emt 00:01:17]} 13. Qxe4 {[%clk 01:28:22]} {[%emt 00:00:32]} Nf6
{[%clk 01:32:35]} {[%emt 00:00:20]} 14. Qe2 {[%clk 01:27:11]} {[%emt 00:01:34]}
Nd5 {[%clk 01:31:46]} {[%emt 00:01:25]} 15. Be5 {[%clk 01:24:15]} {[%emt
00:03:23]} Bf6 {[%clk 01:31:41]} {[%emt 00:00:37]} 16. g4 {[%clk 01:23:19]}
{[%emt 00:01:26]} Bxe5 {[%clk 01:31:31]} {[%emt 00:00:41]} 17. Qxe5 {[%clk
01:23:04]} {[%emt 00:00:44]} Qf6 {[%clk 01:31:36]} {[%emt 00:00:27]} 18. Qxf6
{[%clk 01:22:42]} {[%emt 00:00:50]} Nxf6 {[%clk 01:32:03]} {[%emt 00:00:04]} 19.
g5 {[%clk 01:22:26]} {[%emt 00:00:47]} Ne4 {[%clk 01:31:43]} {[%emt 00:00:50]}
20. Rhf1 {[%clk 01:22:02]} {[%emt 00:00:49]} hxg5 {[%clk 01:30:49]} {[%emt
00:01:28]} 21. hxg5 {[%clk 01:21:49]} {[%emt 00:00:43]} g6 {[%clk 01:26:30]}
{[%emt 00:04:50]} 22. Rde1 {[%clk 01:19:25]} {[%emt 00:02:51]} Nd6 {[%clk
01:26:20]} {[%emt 00:00:41]} 23. Ne5 {[%clk 01:19:04]} {[%emt 00:00:51]} Ke7
{[%emt 00:01:08]} 24. c4 {[%clk 01:18:17]} {[%emt 00:01:14]} Nf5 {[%clk
01:25:53]} {[%emt 00:00:23]} 25. d5 {[%clk 01:18:30]} {[%emt 00:00:15]} cxd5
{[%clk 01:25:27]} {[%emt 00:00:58]} 26. cxd5 {[%clk 01:18:50]} {[%emt
00:00:09]} Ng7 {[%clk 01:24:09]} {[%emt 00:01:48]} 27. d6+ {[%clk 01:18:46]}
{[%emt 00:00:32]} Ke8 {[%clk 01:22:36]} {[%emt 00:02:06]} 28. d7+ {[%clk
01:17:13]} {[%emt 00:02:03]} Ke7 {[%clk 01:22:45]} {[%emt 00:00:19]} 29. Rd1
{[%clk 01:17:30]} {[%emt 00:00:09]} Nf5 {[%clk 01:21:15]} {[%emt 00:02:05]} 30.
Rd3 {[%clk 01:17:05]} {[%emt 00:00:52]} Rad8 {[%clk 01:18:51]} {[%emt
00:02:57]} 31. Rfd1 {[%clk 01:15:31]} {[%emt 00:02:01]} Rh5 {[%clk 01:17:49]}
{[%emt 00:01:36]} 32. Rb3 {[%clk 01:15:13]} {[%emt 00:00:46]} Nd6 {[%clk
01:17:20]} {[%emt 00:01:01]} 33. Rxd6 {[%clk 01:11:29]} {[%emt 00:04:11]} Kxd6
{[%clk 01:16:20]} {[%emt 00:01:32]} 34. Nxf7+ {[%clk 01:11:48]} {[%emt
00:00:10]} Ke7 {[%clk 01:16:37]} {[%emt 00:00:14]} 35. Nxd8 {[%clk 01:12:03]}
{[%emt 00:00:15]} Kxd8 {[%clk 01:17:00]} {[%emt 00:00:08]} 36. Rxb7 {[%clk
01:12:23]} {[%emt 00:00:09]} Rxg5 {[%clk 01:17:03]} {[%emt 00:00:28]} 37. Rxa7
{[%clk 01:12:27]} {[%emt 00:00:25]} Rf5 {[%clk 01:16:58]} {[%emt 00:00:35]} 38.
b4 {[%clk 01:11:42]} {[%emt 00:01:13]} Rxf2 {[%clk 01:15:54]} {[%emt 00:01:37]}
39. b5 {[%clk 01:11:58]} {[%emt 00:00:14]} Rf7 {[%clk 01:16:15]} {[%emt
00:00:08]} 40. b6 {[%clk 01:11:55]} {[%emt 00:00:33]} Rxd7 {[%clk 01:15:51]}
{[%emt 00:02:17]} 41. b7 {[%clk 01:12:13]} {[%emt 00:00:12]} Kc7 {[%clk
01:16:14]} {[%emt 00:00:08]} 42. b8=Q+ {[%clk 01:12:34]} {[%emt 00:00:09]} 1-0

[Event "NJSK 2021 Jeugd C"]
[Site "Almelo, Netherlands"]
[Date "2021.08.05"]
[Round "7.8"]
[White "Pancharajah, Abisan"]
[Black "Madularea, David"]
[Result "0-1"]
[TimeControl "90min + 30sec/move"]
[WhiteElo "1650"]
[BlackElo "1656"]

1. e4 {[%clk 01:30:46]} {[%emt 00:00:13]} c5 {[%clk 01:30:55]} {[%emt
00:00:06]} 2. Nf3 {[%clk 01:31:09]} {[%emt 00:00:06]} d6 {[%clk 01:31:19]}
{[%emt 00:00:06]} 3. d4 {[%clk 01:31:25]} {[%emt 00:00:14]} cxd4 {[%clk
01:31:41]} {[%emt 00:00:08]} 4. Nxd4 {[%clk 01:31:52]} {[%emt 00:00:04]} Nf6
{[%clk 01:31:58]} {[%emt 00:00:13]} 5. Nc3 {[%clk 01:32:18]} {[%emt 00:00:04]}
a6 {[%clk 01:32:26]} {[%emt 00:00:03]} 6. f3 {[%clk 01:32:24]} {[%emt
00:00:21]} h5 {[%clk 01:31:57]} {[%emt 00:01:00]} 7. Be3 {[%clk 01:32:16]}
{[%emt 00:00:38]} e5 {[%clk 01:32:17]} {[%emt 00:00:10]} 8. Nb3 {[%clk
01:31:57]} {[%emt 00:00:50]} Be6 {[%clk 01:32:30]} {[%emt 00:00:16]} 9. Qd2
{[%clk 01:31:32]} {[%emt 00:00:57]} Be7 {[%clk 01:30:41]} {[%emt 00:02:18]} 10.
O-O-O {[%clk 01:30:53]} {[%emt 00:01:09]} Nbd7 {[%clk 01:30:43]} {[%emt
00:00:28]} 11. Be2 {[%clk 01:31:02]} {[%emt 00:00:22]} Rc8 {[%clk 01:26:57]}
{[%emt 00:04:14]} 12. h4 {[%clk 01:31:04]} {[%emt 00:00:31]} b5 {[%clk
01:25:40]} {[%emt 00:01:46]} 13. Rdg1 {[%clk 01:30:13]} {[%emt 00:01:21]} Nb6
{[%clk 01:13:35]} {[%emt 00:12:33]} 14. Kb1 {[%clk 01:28:45]} {[%emt 00:01:58]}
Nc4 {[%clk 01:04:57]} {[%emt 00:09:08]} 15. Bxc4 {[%clk 01:27:57]} {[%emt
00:01:20]} Bxc4 {[%clk 01:02:52]} {[%emt 00:02:33]} 16. g4 {[%clk 01:23:11]}
{[%emt 00:05:17]} hxg4 {[%clk 01:02:20]} {[%emt 00:01:02]} 17. fxg4 {[%clk
01:23:00]} {[%emt 00:00:42]} b4 {[%clk 01:00:17]} {[%emt 00:02:31]} 18. Na4
{[%clk 01:22:09]} {[%emt 00:01:22]} Nxe4 {[%clk 00:59:03]} {[%emt 00:01:42]} 19.
Qxb4 {[%clk 01:21:29]} {[%emt 00:01:12]} d5 {[%clk 00:42:55]} {[%emt 00:16:38]}
20. Qe1 {[%clk 01:19:17]} {[%emt 00:02:39]} Bxb3 {[%clk 00:38:33]} {[%emt
00:04:54]} 21. axb3 {[%clk 01:18:46]} {[%emt 00:01:02]} Rxh4 {[%clk 00:32:34]}
{[%emt 00:06:27]} 22. Nb6 {[%clk 01:16:22]} {[%emt 00:02:56]} Rc6 {[%clk
00:30:22]} {[%emt 00:02:41]} 23. Na4 {[%clk 01:13:42]} {[%emt 00:03:11]} g5
{[%clk 00:21:28]} {[%emt 00:09:21]} 24. c4 {[%clk 01:06:17]} {[%emt 00:07:58]}
dxc4 {[%clk 00:14:31]} {[%emt 00:07:27]} 25. Bc1 {[%clk 01:05:17]} {[%emt
00:01:28]} Qd3+ {[%clk 00:13:45]} {[%emt 00:01:17]} 26. Ka1 {[%clk 01:05:12]}
{[%emt 00:00:35]} cxb3 {[%clk 00:12:05]} {[%emt 00:02:10]} 27. Qa5 {[%clk
01:04:16]} {[%emt 00:01:27]} Qb5 {[%clk 00:11:24]} {[%emt 00:01:10]} 28. Qxb5
{[%clk 01:01:43]} {[%emt 00:03:04]} axb5 {[%clk 00:11:11]} {[%emt 00:00:42]} 29.
Nc3 {[%clk 01:01:41]} {[%emt 00:00:33]} Nxc3 {[%clk 00:11:17]} {[%emt
00:00:24]} 30. bxc3 {[%clk 01:02:03]} {[%emt 00:00:09]} Rxc3 {[%clk 00:11:25]}
{[%emt 00:00:22]} 31. Bb2 {[%clk 01:02:16]} {[%emt 00:00:16]} Re3 {[%clk
00:10:19]} {[%emt 00:01:34]} 32. Re1 {[%clk 01:02:10]} {[%emt 00:00:37]} Rxh1
{[%clk 00:10:10]} {[%emt 00:00:38]} 33. Rxh1 {[%clk 01:02:31]} {[%emt
00:00:10]} f6 {[%clk 00:10:11]} {[%emt 00:00:28]} 34. Rh8+ {[%clk 01:02:37]}
{[%emt 00:00:24]} Kf7 {[%clk 00:10:29]} {[%emt 00:00:11]} 35. Bc1 {[%clk
01:02:50]} {[%emt 00:00:17]} Re1 {[%clk 00:10:34]} {[%emt 00:00:26]} 36. Kb2
{[%clk 01:03:12]} {[%emt 00:00:09]} Ba3+ {[%clk 00:10:41]} {[%emt 00:00:23]} 37.
Kxa3 {[%clk 01:03:39]} {[%emt 00:00:02]} Rxc1 {[%clk 00:11:02]} {[%emt
00:00:09]} 38. Kxb3 {[%clk 01:04:03]} {[%emt 00:00:06]} Rc4 {[%clk 00:11:23]}
{[%emt 00:00:08]} 39. Rb8 {[%clk 01:04:14]} {[%emt 00:00:20]} Rxg4 {[%clk
00:11:43]} {[%emt 00:00:10]} 40. Rxb5 {[%clk 01:04:35]} {[%emt 00:00:09]} Kg6
{[%clk 00:11:59]} {[%emt 00:00:13]} 41. Rb6 {[%clk 01:04:58]} {[%emt 00:00:08]}
Rd4 {[%clk 00:12:09]} {[%emt 00:00:21]} 42. Kc3 {[%clk 01:05:10]} {[%emt
00:00:18]} g4 {[%clk 00:12:30]} {[%emt 00:00:08]} 43. Rb8 {[%clk 01:05:35]}
{[%emt 00:00:05]} Kf5 {[%clk 00:12:39]} {[%emt 00:00:20]} 44. Rb1 {[%clk
01:05:27]} {[%emt 00:00:32]} g3 {[%clk 00:12:40]} {[%emt 00:00:35]} 45. Rf1+
{[%clk 01:05:51]} {[%emt 00:00:08]} Kg5 {[%clk 00:12:30]} {[%emt 00:00:40]} 46.
Rg1 {[%clk 01:06:12]} {[%emt 00:00:09]} Kg4 {[%clk 00:12:54]} {[%emt 00:00:06]}
47. Rf1 {[%clk 01:06:20]} {[%emt 00:00:23]} f5 {[%clk 00:13:08]} {[%emt
00:00:15]} 48. Rg1 {[%clk 01:05:01]} {[%emt 00:01:49]} f4 {[%clk 00:12:40]}
{[%emt 00:00:58]} 49. Re1 {[%clk 01:05:23]} {[%emt 00:00:08]} g2 {[%clk
00:12:52]} {[%emt 00:00:17]} 50. Rxe5 {[%clk 01:04:59]} {[%emt 00:00:56]} g1=Q
{[%clk 00:13:00]} {[%emt 00:00:19]} 51. Re1 {[%clk 01:05:19]} {[%emt 00:00:12]}
Qxe1+ {[%clk 00:13:14]} {[%emt 00:00:15]} 52. Kxd4 {[%clk 01:05:48]} {[%emt
00:00:02]} f3 {[%clk 00:13:33]} {[%emt 00:00:11]} 53. Kd5 {[%clk 01:06:14]}
{[%emt 00:00:04]} f2 {[%clk 00:13:58]} {[%emt 00:00:05]} 54. Kd6 {[%clk
01:06:42]} {[%emt 00:00:02]} f1=Q {[%clk 00:14:01]} {[%emt 00:00:27]} 55. Kc7
{[%clk 01:07:11]} Qb5 {[%clk 00:13:35]} {[%emt 00:00:56]} 56. Kc8 {[%clk
01:07:15]} {[%emt 00:00:27]} Qee8+ {[%clk 00:13:57]} {[%emt 00:00:08]} 0-1

[Event "NJSK 2021 Jeugd C"]
[Site "Almelo, Netherlands"]
[Date "2021.08.05"]
[Round "7.9"]
[White "Blom, Rens"]
[Black "Kumar, Prayan Sai"]
[Result "1-0"]
[TimeControl "90min + 30sec/move"]
[WhiteElo "1650"]
[BlackElo "1652"]

1. c4 {[%clk 01:30:58]} {[%emt 00:00:01]} Nf6 {[%clk 01:30:50]} {[%emt
00:00:11]} 2. Nc3 {[%clk 01:31:21]} {[%emt 00:00:07]} e6 {[%clk 01:30:29]}
{[%emt 00:00:52]} 3. e4 {[%clk 01:31:40]} {[%emt 00:00:10]} d6 {[%clk
01:22:39]} {[%emt 00:08:21]} 4. d4 {[%clk 01:29:50]} {[%emt 00:02:20]} h6
{[%clk 01:21:43]} {[%emt 00:01:26]} 5. Nf3 {[%clk 01:28:17]} {[%emt 00:02:03]}
b6 {[%clk 01:17:20]} {[%emt 00:04:54]} 6. Bf4 {[%clk 01:24:40]} {[%emt
00:04:06]} Bb7 {[%clk 01:16:51]} {[%emt 00:01:00]} 7. d5 {[%clk 01:20:58]}
{[%emt 00:04:11]} e5 {[%clk 01:15:27]} {[%emt 00:01:55]} 8. Be3 {[%clk
01:20:21]} {[%emt 00:01:07]} Be7 {[%clk 01:14:46]} {[%emt 00:01:11]} 9. Nd2
{[%clk 01:19:09]} {[%emt 00:01:42]} Nh7 {[%clk 01:14:17]} {[%emt 00:00:59]} 10.
Be2 {[%clk 01:15:32]} {[%emt 00:04:07]} Bg5 {[%clk 01:14:31]} {[%emt 00:00:16]}
11. Bxg5 {[%clk 01:13:36]} {[%emt 00:02:27]} hxg5 {[%clk 01:14:02]} {[%emt
00:00:59]} 12. f3 {[%clk 01:12:28]} {[%emt 00:01:38]} Nd7 {[%clk 01:09:05]}
{[%emt 00:05:27]} 13. b4 {[%clk 01:10:58]} {[%emt 00:02:00]} Nhf6 {[%clk
01:07:24]} {[%emt 00:02:11]} 14. g3 {[%clk 01:07:14]} {[%emt 00:04:14]} Nf8
{[%clk 01:00:04]} {[%emt 00:07:50]} 15. Nb3 {[%clk 01:05:27]} {[%emt 00:02:16]}
N6d7 {[%clk 00:58:50]} {[%emt 00:01:44]} 16. Na4 {[%clk 00:55:33]} {[%emt
00:10:25]} Ng6 {[%clk 00:50:35]} {[%emt 00:08:45]} 17. c5 {[%clk 00:54:39]}
{[%emt 00:01:24]} Nf6 {[%clk 00:45:02]} {[%emt 00:06:03]} 18. Bb5+ {[%clk
00:49:55]} {[%emt 00:05:14]} Kf8 {[%clk 00:43:16]} {[%emt 00:02:16]} 19. cxd6
{[%clk 00:45:20]} {[%emt 00:05:05]} Qxd6 {[%clk 00:42:49]} {[%emt 00:00:56]} 20.
a3 {[%clk 00:44:23]} {[%emt 00:01:27]} a6 {[%clk 00:41:59]} {[%emt 00:01:20]}
21. Be2 {[%clk 00:43:44]} {[%emt 00:01:09]} Nh5 {[%clk 00:41:22]} {[%emt
00:01:07]} 22. O-O {[%clk 00:42:15]} {[%emt 00:02:00]} Qd7 {[%clk 00:40:30]}
{[%emt 00:01:22]} 23. g4 {[%clk 00:36:09]} {[%emt 00:06:35]} Nhf4 {[%clk
00:40:01]} {[%emt 00:00:59]} 24. Nb2 {[%clk 00:35:25]} {[%emt 00:01:14]} Rh4
{[%clk 00:38:32]} {[%emt 00:01:59]} 25. Kh1 {[%clk 00:29:37]} {[%emt 00:06:17]}
Ke7 {[%clk 00:37:16]} {[%emt 00:01:47]} 26. Rf2 {[%clk 00:29:20]} {[%emt
00:00:46]} Rah8 {[%clk 00:37:33]} {[%emt 00:00:13]} 27. Bf1 {[%clk 00:28:49]}
{[%emt 00:01:02]} R8h7 {[%clk 00:36:05]} {[%emt 00:01:57]} 28. Nc4 {[%clk
00:27:03]} {[%emt 00:02:15]} b5 {[%clk 00:34:25]} {[%emt 00:02:11]} 29. Nc5
{[%clk 00:26:08]} {[%emt 00:01:25]} Qc8 {[%clk 00:34:04]} {[%emt 00:00:51]} 30.
d6+ {[%clk 00:24:38]} {[%emt 00:02:01]} Ke8 {[%clk 00:33:55]} {[%emt 00:00:07]}
1-0

[Event "NJSK 2021 Jeugd C"]
[Site "Almelo, Netherlands"]
[Date "2021.08.05"]
[Round "7.10"]
[White "Ramdien, Steven"]
[Black "Lopes, Samuel"]
[Result "1-0"]
[TimeControl "90min + 30sec/move"]
[WhiteElo "1589"]
[BlackElo "1124"]

1. e4 {[%clk 01:30:58]} {[%emt 00:00:01]} c5 {[%clk 01:30:53]} {[%emt
00:00:07]} 2. Nf3 {[%clk 01:31:24]} {[%emt 00:00:03]} e6 {[%clk 01:31:18]}
{[%emt 00:00:06]} 3. d4 {[%clk 01:31:51]} {[%emt 00:00:04]} cxd4 {[%clk
01:31:42]} {[%emt 00:00:06]} 4. Nxd4 {[%clk 01:32:17]} {[%emt 00:00:04]} Nf6
{[%clk 01:32:02]} {[%emt 00:00:10]} 5. Nc3 {[%clk 01:32:40]} {[%emt 00:00:07]}
Nc6 {[%clk 01:32:21]} {[%emt 00:00:12]} 6. Bf4 {[%clk 01:32:25]} {[%emt
00:00:45]} Bb4 {[%clk 01:32:28]} {[%emt 00:00:22]} 7. Ndb5 {[%clk 01:31:50]}
{[%emt 00:01:05]} Nxe4 {[%clk 01:32:26]} {[%emt 00:00:32]} 8. Qf3 {[%clk
01:30:25]} {[%emt 00:01:55]} d5 {[%clk 01:32:14]} {[%emt 00:00:43]} 9. Nc7+
{[%clk 01:29:28]} {[%emt 00:01:27]} Kf8 {[%clk 01:32:12]} {[%emt 00:00:32]} 10.
Rd1 {[%clk 01:26:00]} {[%emt 00:03:58]} Qf6 {[%clk 01:27:49]} {[%emt 00:04:52]}
11. Rd3 {[%clk 01:19:21]} {[%emt 00:07:09]} Nd4 {[%clk 01:25:07]} {[%emt
00:03:12]} 12. Rxd4 {[%clk 01:15:29]} {[%emt 00:04:22]} Qxd4 {[%clk 01:24:00]}
{[%emt 00:01:37]} 13. Bd3 {[%clk 01:12:38]} {[%emt 00:03:21]} e5 {[%clk
01:19:13]} {[%emt 00:05:17]} 14. O-O {[%clk 01:04:22]} {[%emt 00:08:46]} exf4
{[%clk 01:18:27]} {[%emt 00:01:15]} 15. N3xd5 {[%clk 01:02:59]} {[%emt
00:01:53]} Nd2 {[%clk 01:16:04]} {[%emt 00:02:53]} 16. Qe2 {[%clk 01:03:03]}
{[%emt 00:00:26]} Bg4 {[%clk 01:14:51]} {[%emt 00:01:44]} 17. Qxg4 {[%clk
01:02:42]} {[%emt 00:00:51]} Nxf1 {[%clk 01:14:07]} {[%emt 00:01:14]} 18. Qf5
{[%clk 01:01:41]} {[%emt 00:01:30]} Qxb2 {[%clk 01:00:01]} {[%emt 00:14:36]} 19.
Nxa8 {[%clk 01:00:23]} {[%emt 00:01:49]} g6 {[%clk 00:55:27]} {[%emt 00:05:03]}
20. Qxf4 {[%clk 00:57:57]} {[%emt 00:02:56]} Nd2 {[%clk 00:53:51]} {[%emt
00:02:06]} 21. Qxb4+ {[%clk 00:45:59]} {[%emt 00:12:27]} Qxb4 {[%clk 00:54:01]}
{[%emt 00:00:20]} 22. Nxb4 {[%clk 00:46:25]} {[%emt 00:00:05]} Kg7 {[%clk
00:51:20]} {[%emt 00:03:10]} 23. Nc7 {[%clk 00:45:29]} {[%emt 00:01:27]} Rc8
{[%clk 00:50:17]} {[%emt 00:01:33]} 24. Nbd5 {[%clk 00:44:43]} {[%emt
00:01:16]} Nb1 {[%clk 00:48:56]} {[%emt 00:01:46]} 25. c4 {[%clk 00:43:16]}
{[%emt 00:02:02]} Nc3 {[%clk 00:48:57]} {[%emt 00:00:28]} 26. Nxc3 {[%clk
00:42:50]} {[%emt 00:00:56]} Rxc7 {[%clk 00:49:17]} {[%emt 00:00:10]} 27. f3
{[%emt 00:00:29]} a6 {[%clk 00:46:56]} {[%emt 00:02:32]} 28. a4 {[%clk
00:43:07]} {[%emt 00:00:34]} h5 {[%clk 00:45:20]} {[%emt 00:02:05]} 29. Kf2
{[%clk 00:43:28]} {[%emt 00:00:09]} Kh6 {[%clk 00:45:01]} {[%emt 00:00:49]} 30.
Ke3 {[%clk 00:43:34]} {[%emt 00:00:24]} f5 {[%clk 00:44:52]} {[%emt 00:00:39]}
31. Nd5 {[%clk 00:42:37]} {[%emt 00:01:27]} Rc6 {[%clk 00:43:34]} {[%emt
00:01:48]} 32. Kd4 {[%clk 00:40:56]} {[%emt 00:02:10]} b6 {[%clk 00:40:11]}
{[%emt 00:03:54]} 33. Ke5 {[%clk 00:40:01]} {[%emt 00:01:24]} h4 {[%clk
00:36:06]} {[%emt 00:04:36]} 34. f4 {[%clk 00:38:02]} {[%emt 00:02:29]} Kg7
{[%clk 00:34:12]} {[%emt 00:02:24]} 35. Kd4 {[%emt 00:03:16]} Kh6 {[%clk
00:32:36]} 36. Kc3 {[%clk 00:36:28]} {[%emt 00:01:24]} b5 {[%clk 00:31:18]}
{[%emt 00:01:48]} 37. Kb4 {[%clk 00:36:11]} {[%emt 00:00:47]} bxc4 {[%clk
00:30:22]} {[%emt 00:01:26]} 38. Bxc4 {[%clk 00:36:23]} {[%emt 00:00:18]} Kg7
{[%clk 00:28:11]} {[%emt 00:02:41]} 39. a5 {[%clk 00:36:23]} {[%emt 00:00:31]}
Kf8 {[%clk 00:26:09]} {[%emt 00:02:31]} 40. Nb6 {[%clk 00:36:38]} {[%emt
00:00:16]} Ke7 {[%clk 00:25:18]} {[%emt 00:01:21]} 41. Bxa6 {[%clk 00:36:49]}
{[%emt 00:00:19]} Rc2 {[%clk 00:24:54]} {[%emt 00:00:54]} 42. Bb7 {[%clk
00:37:04]} {[%emt 00:00:14]} Rb2+ {[%clk 00:24:46]} {[%emt 00:00:38]} 43. Kc5
{[%clk 00:37:11]} {[%emt 00:00:22]} Ra2 {[%clk 00:24:50]} {[%emt 00:00:26]} 44.
a6 {[%clk 00:37:22]} {[%emt 00:00:20]} Kf6 {[%clk 00:22:54]} {[%emt 00:02:26]}
45. Kb5 {[%clk 00:37:29]} {[%emt 00:00:23]} g5 {[%clk 00:23:04]} {[%emt
00:00:19]} 46. fxg5+ {[%clk 00:37:49]} {[%emt 00:00:11]} Kxg5 {[%clk 00:23:26]}
{[%emt 00:00:07]} 47. Na4 {[%clk 00:38:16]} {[%emt 00:00:04]} Rd2 {[%clk
00:22:50]} {[%emt 00:01:07]} 48. a7 {[%emt 00:00:19]} Rd8 {[%clk 00:23:09]} 49.
Nb6 {[%clk 00:38:36]} {[%emt 00:00:32]} Re8 {[%clk 00:22:47]} {[%emt 00:00:51]}
50. Nc8 {[%clk 00:38:33]} {[%emt 00:00:33]} Re5+ {[%clk 00:23:08]} {[%emt
00:00:09]} 51. Kb6 {[%clk 00:38:50]} {[%emt 00:00:13]} Re6+ {[%clk 00:23:05]}
{[%emt 00:00:32]} 52. Bc6 {[%clk 00:39:10]} {[%emt 00:00:10]} h3 {[%clk
00:22:59]} {[%emt 00:00:37]} 53. gxh3 {[%clk 00:39:25]} {[%emt 00:00:16]} f4
{[%clk 00:23:16]} {[%emt 00:00:12]} 54. a8=Q {[%clk 00:39:50]} {[%emt
00:00:05]} f3 {[%clk 00:23:39]} {[%emt 00:00:07]} 55. Qa5+ {[%clk 00:40:12]}
{[%emt 00:00:09]} Kg6 {[%clk 00:23:44]} {[%emt 00:00:24]} 56. Qd2 {[%clk
00:40:20]} {[%emt 00:00:22]} Rf6 {[%clk 00:23:42]} {[%emt 00:00:33]} 57. Qf2
{[%clk 00:40:46]} {[%emt 00:00:05]} Kg5 {[%clk 00:23:56]} {[%emt 00:00:15]} 58.
Ne7 {[%clk 00:40:51]} {[%emt 00:00:26]} Kh6 {[%clk 00:23:58]} {[%emt 00:00:27]}
59. Ng8 {[%clk 00:41:15]} {[%emt 00:00:06]} Kh7 {[%clk 00:24:20]} {[%emt
00:00:08]} 60. Nxf6+ {[%clk 00:41:40]} {[%emt 00:00:04]} Kh6 {[%clk 00:24:40]}
{[%emt 00:00:10]} 61. Qxf3 {[%clk 00:42:03]} {[%emt 00:00:08]} Kg7 {[%clk
00:24:56]} {[%emt 00:00:14]} 62. Ne8+ {[%clk 00:42:28]} {[%emt 00:00:06]} Kh6
{[%clk 00:25:09]} {[%emt 00:00:16]} 63. Qg4 {[%clk 00:42:48]} {[%emt 00:00:08]}
Kh7 {[%clk 00:25:32]} {[%emt 00:00:10]} 64. Qg7+ {[%clk 00:43:15]} {[%emt
00:00:03]} 1-0

[Event "NJSK 2021 Jeugd C"]
[Site "Almelo, Netherlands"]
[Date "2021.08.05"]
[Round "7.11"]
[White "Kien, Lancelot"]
[Black "Lankheet, Hidde"]
[Result "1-0"]
[TimeControl "90min + 30sec/move"]
[WhiteElo "1650"]
[BlackElo "1000"]

1. e4 {[%clk 01:30:57]} {[%emt 00:00:03]} e5 {[%clk 01:30:48]} {[%emt
00:00:12]} 2. Nf3 {[%clk 01:31:23]} {[%emt 00:00:03]} Nc6 {[%clk 01:31:09]}
{[%emt 00:00:10]} 3. Bc4 {[%clk 01:31:49]} {[%emt 00:00:03]} Nf6 {[%clk
01:31:26]} {[%emt 00:00:13]} 4. d3 {[%clk 01:32:17]} {[%emt 00:00:03]} Bc5
{[%clk 01:31:27]} {[%emt 00:00:28]} 5. c3 {[%clk 01:32:40]} {[%emt 00:00:07]}
a6 {[%clk 01:31:37]} {[%emt 00:00:20]} 6. Nbd2 {[%clk 01:33:02]} {[%emt
00:00:08]} O-O {[%clk 01:31:48]} {[%emt 00:00:19]} 7. h3 {[%clk 01:33:08]}
{[%emt 00:00:23]} b5 {[%clk 01:31:25]} {[%emt 00:00:53]} 8. Bb3 {[%clk
01:33:27]} {[%emt 00:00:11]} d6 {[%clk 01:31:33]} {[%emt 00:00:22]} 9. Nf1
{[%clk 01:33:46]} {[%emt 00:00:11]} Bb7 {[%clk 01:30:55]} {[%emt 00:01:08]} 10.
Ng3 {[%clk 01:33:35]} {[%emt 00:00:41]} Ne7 {[%clk 01:30:48]} {[%emt 00:00:36]}
11. Bg5 {[%clk 01:32:26]} {[%emt 00:01:39]} Ng6 {[%clk 01:30:41]} {[%emt
00:00:38]} 12. Nh5 {[%clk 01:31:41]} {[%emt 00:01:15]} c6 {[%clk 01:25:59]}
{[%emt 00:05:12]} 13. Nxf6+ {[%clk 01:31:06]} {[%emt 00:01:05]} gxf6 {[%clk
01:26:21]} {[%emt 00:00:08]} 14. Bh6 {[%clk 01:31:19]} {[%emt 00:00:16]} Re8
{[%clk 01:26:46]} {[%emt 00:00:06]} 15. g3 {[%clk 01:28:41]} {[%emt 00:03:08]}
Kh8 {[%clk 01:26:06]} {[%emt 00:01:09]} 16. Bxf7 {[%clk 01:25:49]} {[%emt
00:03:23]} Re7 {[%clk 01:26:05]} {[%emt 00:00:31]} 17. Bxg6 {[%clk 01:25:43]}
{[%emt 00:00:35]} hxg6 {[%clk 01:26:29]} {[%emt 00:00:06]} 18. Nh4 {[%clk
01:25:37]} {[%emt 00:00:36]} Qg8 {[%clk 01:26:17]} {[%emt 00:00:42]} 19. Be3
{[%clk 01:24:52]} {[%emt 00:01:15]} Bxe3 {[%clk 01:24:54]} {[%emt 00:01:53]} 20.
fxe3 {[%clk 01:24:58]} {[%emt 00:00:24]} f5 {[%clk 01:24:37]} {[%emt 00:00:48]}
21. exf5 {[%clk 01:24:43]} {[%emt 00:00:45]} gxf5 {[%clk 01:24:55]} {[%emt
00:00:12]} 22. Nxf5 {[%clk 01:24:09]} {[%emt 00:01:04]} Rf7 {[%clk 01:25:17]}
{[%emt 00:00:08]} 23. g4 {[%clk 01:23:09]} {[%emt 00:01:29]} Qd8 {[%clk
01:19:54]} {[%emt 00:05:53]} 24. e4 {[%clk 01:16:27]} {[%emt 00:07:13]} d5
{[%clk 01:19:00]} {[%emt 00:01:24]} 25. O-O {[%clk 01:10:07]} {[%emt 00:06:49]}
dxe4 {[%clk 01:17:03]} {[%emt 00:02:28]} 26. dxe4 {[%clk 01:10:23]} {[%emt
00:00:14]} Qb6+ {[%clk 01:17:05]} {[%emt 00:00:28]} 27. Kg2 {[%clk 01:08:14]}
{[%emt 00:02:39]} c5 {[%clk 01:16:46]} {[%emt 00:00:49]} 28. Qc2 {[%clk
01:04:52]} {[%emt 00:03:51]} Rd8 {[%clk 01:15:32]} {[%emt 00:01:44]} 29. Rad1
{[%clk 01:02:27]} {[%emt 00:02:56]} Rxd1 {[%clk 01:14:56]} {[%emt 00:01:06]} 30.
Rxd1 {[%clk 01:02:47]} {[%emt 00:00:10]} Rf8 {[%clk 01:14:43]} {[%emt
00:00:42]} 31. Rd6 {[%clk 01:01:05]} {[%emt 00:02:12]} Qc7 {[%clk 01:13:55]}
{[%emt 00:01:18]} 32. Rh6+ {[%clk 00:53:41]} {[%emt 00:07:54]} Kg8 {[%clk
01:13:13]} {[%emt 00:01:13]} 33. Qd3 {[%clk 00:53:49]} {[%emt 00:00:23]} Rxf5
{[%clk 01:13:01]} {[%emt 00:00:42]} 34. gxf5 {[%emt 00:03:39]} Qg7+ 1-0